bitfinex-derivatives/quotes_BTCF0:USTF0_20241013
["timestamp","ask_amount","ask_price","bid_price","bid_amount"]
[1728829746061,0.0828,62690.0,62689.0,0.081777]
[1728829746358,0.162577,62690.0,62689.0,0.081777]
[1728829746558,0.162577,62690.0,62689.0,0.002]
[1728829746559,1.601937,62690.0,62689.0,0.002]
[1728829748761,1.596937,62690.0,62689.0,0.002]
[1728829749563,1.594937,62690.0,62689.0,0.002]
[1728829750671,0.994937,62690.0,62689.0,0.002]
[1728829755374,0.994937,62690.0,62689.0,0.081778]
[1728829755572,0.994937,62690.0,62688.0,0.11]
[1728829755573,1.51516,62690.0,62678.0,0.04786665]
[1728829755871,0.079781,62687.0,62686.0,0.11]
[1728829756379,1.158341,62687.0,62686.0,0.11]
[1728829756862,0.558341,62687.0,62686.0,0.11]
[1728829757369,0.562341,62687.0,62686.0,0.11]
[1728829758379,1.162341,62687.0,62686.0,0.11]
[1728829758577,0.562341,62687.0,62686.0,0.11]
[1728829758879,1.167341,62687.0,62686.0,0.11]
[1728829759377,0.567341,62687.0,62686.0,0.11]
[1728829760876,0.088781,62687.0,62686.0,0.11]
[1728829761080,0.567341,62687.0,62686.0,0.11]
[1728829761281,0.088781,62687.0,62686.0,0.11]
[1728829763674,0.567341,62687.0,62686.0,0.11]
[1728829763984,0.088781,62687.0,62686.0,0.11]
[1728829764178,0.567341,62687.0,62686.0,0.11]
[1728829764381,0.088781,62687.0,62686.0,0.11]
[1728829764870,0.567341,62687.0,62686.0,0.11]
[1728829765772,0.088781,62687.0,62686.0,0.11]
[1728829765974,0.567341,62687.0,62686.0,0.11]
[1728829766377,0.61635411,62687.0,62686.0,0.11]
[1728829766778,0.13779411,62687.0,62686.0,0.11]
[1728829767079,0.088781,62687.0,62686.0,0.11]
[1728829767777,0.088781,62687.0,62686.0,0.189782]
[1728829771080,0.088781,62687.0,62686.0,0.23764865]
[1728829771585,0.088781,62687.0,62686.0,0.189782]
[1728829771989,0.088781,62687.0,62686.0,0.23762438]
[1728829772193,0.088781,62687.0,62686.0,0.189782]
[1728829773584,0.088781,62687.0,62686.0,0.23765596]
[1728829773784,0.088781,62687.0,62686.0,0.11]
[1728829774485,0.088781,62687.0,62686.0,0.15787651]
[1728829774888,0.1379148,62687.0,62686.0,0.11]
[1728829778595,0.1379148,62687.0,62686.0,0.189782]
[1728829779285,0.13790594,62687.0,62686.0,0.189782]
[1728829782000,0.088781,62687.0,62686.0,0.189782]
[1728829782495,0.088781,62687.0,62686.0,0.2536042]
[1728829782693,0.088781,62687.0,62686.0,0.189782]
[1728829784605,0.088781,62687.0,62686.0,0.2536042]
[1728829784795,0.088781,62687.0,62686.0,0.189782]
[1728829785095,0.088781,62687.0,62686.0,0.6144042]
[1728829785903,0.009,62687.0,62686.0,0.6144042]
[1728829786097,0.009,62687.0,62686.0,0.550582]
[1728829786803,0.009,62687.0,62686.0,0.613382]
[1728829787394,0.009,62687.0,62686.0,0.550582]
[1728829787906,0.009,62687.0,62686.0,0.61440271]
[1728829788205,0.088781,62687.0,62686.0,0.61440271]
[1728829788393,0.088781,62687.0,62686.0,0.550582]
[1728829790799,0.11716722,62687.0,62686.0,0.550582]
[1728829793007,0.088781,62687.0,62686.0,0.550582]
[1728829794702,0.088781,62687.0,62686.0,0.189782]
[1728829795002,0.079783,62685.0,62684.0,0.3608]
[1728829795204,0.080183,62685.0,62684.0,0.4708]
[1728829796201,0.083183,62685.0,62684.0,0.4708]
[1728829796708,0.085183,62685.0,62684.0,0.4708]
[1728829797609,0.0054,62685.0,62684.0,0.550585]
[1728829797808,0.085183,62685.0,62684.0,0.550585]
[1728829798911,0.082183,62685.0,62684.0,0.550585]
[1728829799114,0.082183,62685.0,62684.0,0.553585]
[1728829799505,0.080183,62685.0,62684.0,0.557585]
[1728829800511,0.080183,62685.0,62684.0,0.4778]
[1728829801101,0.080183,62685.0,62684.0,0.117]
[1728829802406,0.080183,62685.0,62684.0,0.114]
[1728829802612,0.080183,62685.0,62684.0,0.117]
[1728829803305,0.080183,62685.0,62684.0,0.114]
[1728829803506,0.080183,62685.0,62684.0,0.117]
[1728829804105,0.160366,62685.0,62684.0,0.117]
[1728829807515,0.160366,62685.0,62684.0,0.196785]
[1728829808614,0.320732,62685.0,62684.0,0.196785]
[1728829809812,0.320732,62685.0,62684.0,0.117]
[1728829811917,0.320732,62685.0,62684.0,0.196785]
[1728829816612,0.320732,62685.0,62683.0,0.07981334]
[1728829816812,0.320732,62685.0,62684.0,0.28602102]
[1728829818026,0.320732,62685.0,62684.0,0.36580602]
[1728829819025,0.320732,62685.0,62684.0,0.28599268]
[1728829819622,0.320732,62685.0,62684.0,0.28600353]
[1728829819828,0.320732,62685.0,62684.0,0.29000353]
[1728829820137,0.07380249,62684.0,62682.0,0.09575462]
[1728829820328,0.15358749,62684.0,62683.0,0.11]
[1728829821438,0.15358749,62684.0,62683.0,0.115]
[1728829821738,0.15358749,62684.0,62683.0,0.11998966]
[1728829822135,0.15358749,62684.0,62683.0,0.115]
[1728829822335,0.15358749,62684.0,62683.0,0.005]
[1728829822733,0.15358749,62684.0,62683.0,0.084786]
[1728829823643,0.15358749,62684.0,62683.0,0.087786]
[1728829823936,0.15358749,62684.0,62683.0,0.197786]
[1728829825839,0.15358749,62684.0,62683.0,0.27758946]
[1728829827146,0.15358749,62684.0,62683.0,0.24566929]
[1728829827533,0.18418749,62684.0,62683.0,0.24566929]
[1728829828442,0.18418749,62684.0,62683.0,0.16588329]
[1728829830344,0.110385,62684.0,62683.0,0.16588329]
[1728829833545,0.110385,62684.0,62683.0,0.118]
[1728829834046,0.110385,62684.0,62683.0,0.03192017]
[1728829834241,0.110385,62684.0,62683.0,0.14192017]
[1728829835644,0.110385,62684.0,62683.0,0.11]
[1728829837041,0.11170617,62683.0,62682.0,0.079787]
[1728829837239,0.11210617,62683.0,62682.0,0.28504228]
[1728829838245,0.11310617,62683.0,62682.0,0.28804228]
[1728829838747,0.03332017,62683.0,62682.0,0.28804228]
[1728829839744,0.03332017,62683.0,62682.0,0.29204228]
[1728829841943,0.03332017,62683.0,62682.0,0.29703216]
[1728829842855,0.03332017,62683.0,62682.0,0.29698978]
[1728829846751,0.03332017,62683.0,62682.0,0.18698978]
[1728829846950,0.03332017,62683.0,62682.0,0.2919999]
[1728829850954,0.03332017,62683.0,62682.0,0.196787]
[1728829853457,0.03332017,62683.0,62682.0,0.29203233]
[1728829854468,0.03332017,62683.0,62682.0,0.29702219]
[1728829855570,0.03332017,62683.0,62682.0,0.20177686]
[1728829856769,0.03332017,62683.0,62682.0,0.26561995]
[1728829857763,0.03332017,62683.0,62682.0,0.29700304]
[1728829858263,0.03332017,62683.0,62682.0,0.39276768]
[1728829861158,0.03332017,62683.0,62682.0,0.39284741]
[1728829864876,0.03332017,62683.0,62682.0,0.20177686]
[1728829866274,0.03332017,62683.0,62682.0,0.20177684]
[1728829866778,0.03332017,62683.0,62682.0,0.09177684]
[1728829866977,0.03332017,62683.0,62682.0,0.20177684]
[1728829869973,0.03332017,62683.0,62682.0,0.196787]
[1728829870169,0.03332017,62683.0,62682.0,0.20177684]
[1728829871778,0.03332017,62683.0,62682.0,0.31722973]
[1728829872577,0.03332017,62683.0,62682.0,0.41299437]
[1728829873682,0.03332017,62683.0,62682.0,0.41299432]
[1728829873880,0.03332017,62683.0,62682.0,0.31722968]
[1728829876294,0.03332017,62683.0,62682.0,0.29727069]
[1728829876486,0.03332017,62683.0,62682.0,0.31722968]
[1728829877091,0.03332017,62683.0,62682.0,0.29727069]
[1728829877381,0.03332017,62683.0,62682.0,0.29228085]
[1728829877592,0.03332017,62683.0,62682.0,0.29727059]
[1728829879894,0.03332017,62683.0,62682.0,0.20177674]
[1728829883989,0.001,62683.0,62682.0,0.3915788]
[1728829884300,0.0353,62691.0,62690.0,0.079777]
[1728829884489,0.0316,62691.0,62690.0,0.36361519]
[1728829885398,0.0346,62691.0,62690.0,0.36361519]
[1728829885606,0.0386,62691.0,62690.0,0.299777]
[1728829886909,0.0386,62691.0,62690.0,0.39490619]
[1728829887500,0.0386,62691.0,62690.0,0.47463845]
[1728829887906,0.0386,62691.0,62690.0,0.47962766]
[1728829888207,0.0386,62691.0,62690.0,0.47463845]
[1728829888401,0.0386,62691.0,62690.0,0.47962766]
[1728829890399,0.0386,62691.0,62690.0,0.38449847]
[1728829891304,0.0386,62691.0,62690.0,0.4129525]
[1728829891506,0.0386,62691.0,62690.0,0.33322024]
[1728829895601,0.0386,62691.0,62690.0,0.33322021]
[1728829896101,0.0386,62691.0,62690.0,0.32823103]
[1728829896301,0.0386,62691.0,62690.0,0.33322021]
[1728829901713,0.0386,62691.0,62690.0,0.22322021]
[1728829901914,0.0386,62691.0,62690.0,0.33322021]
[1728829903416,0.0386,62691.0,62690.0,0.22322021]
[1728829903819,0.0386,62691.0,62690.0,0.33322021]
[1728829905426,0.0386,62691.0,62690.0,0.22322021]
[1728829905625,0.338376,62691.0,62690.0,0.01387451]
[1728829905829,0.079781,62687.0,62686.0,0.079781]
[1728829906124,0.190181,62687.0,62686.0,0.079781]
[1728829906322,0.4712,62687.0,62684.0,0.07973226]
[1728829906515,0.1104,62685.0,62681.0,0.0111]
[1728829906716,0.1104,62682.0,62680.0,0.18979]
[1728829906916,0.0004,62681.0,62680.0,0.18979]
[1728829908017,0.0004,62681.0,62680.0,0.19579]
[1728829908226,0.0004,62681.0,62680.0,0.22412336]
[1728829908426,0.0014,62681.0,62680.0,0.23112336]
[1728829909229,0.0333,62681.0,62680.0,0.23112336]
[1728829910231,0.0343,62681.0,62680.0,0.23112336]
[1728829919030,0.114088,62681.0,62680.0,0.09279]
[1728829924633,0.0343,62681.0,62680.0,0.09279]
[1728829925023,0.114088,62681.0,62680.0,0.09279]
[1728829925327,0.47864,62680.0,62674.0,0.0037]
[1728829925531,1.1051,62681.0,62670.0,0.0060933]
[1728829925532,0.079801,62671.0,62670.0,0.0060933]
[1728829925727,0.080201,62671.0,62670.0,0.0023933]
[1728829926335,0.080201,62671.0,62670.0,0.0821953]
[1728829926633,0.080201,62671.0,62670.0,0.0023933]
[1728829926634,0.558881,62671.0,62670.0,0.0023933]
[1728829926834,0.079805,62668.0,62667.0,0.079806]
[1728829927139,0.190205,62668.0,62667.0,0.079806]
[1728829928236,0.191205,62668.0,62667.0,0.086806]
[1728829928733,0.192205,62668.0,62667.0,0.086806]
[1728829929131,0.192205,62668.0,62667.0,0.007]
[1728829929944,0.302205,62668.0,62667.0,0.007]
[1728829930133,0.22087933,62668.0,62667.0,0.007]
[1728829930440,0.33087933,62668.0,62667.0,0.007]
[1728829931336,0.22087933,62668.0,62667.0,0.007]
[1728829931538,0.33087933,62668.0,62667.0,0.007]
[1728829931738,0.22087933,62668.0,62667.0,0.007]
[1728829931945,0.33087933,62668.0,62667.0,0.007]
[1728829932457,0.22087933,62668.0,62667.0,0.007]
[1728829934563,0.33087933,62668.0,62667.0,0.007]
[1728829935676,0.443005,62668.0,62667.0,0.007]
[1728829935862,0.192205,62668.0,62667.0,0.007]
[1728829940970,0.082205,62668.0,62667.0,0.007]
[1728829941274,0.192205,62668.0,62667.0,0.086806]
[1728829944990,0.192205,62668.0,62667.0,0.007]
[1728829945580,0.302205,62668.0,62667.0,0.007]
[1728829947577,0.302205,62668.0,62662.0,0.0111]
[1728829947578,0.079811,62663.0,62662.0,0.0111]
[1728829947880,0.079811,62663.0,62658.0,0.00156]
[1728829947881,0.079816,62659.0,62658.0,0.00156]
[1728829948077,0.1104,62659.0,62654.0,0.07973226]
[1728829948274,0.079819,62658.0,62657.0,0.079819]
[1728829948978,0.189819,62658.0,62657.0,0.079819]
[1728829950577,0.190819,62658.0,62657.0,0.081819]
[1728829950974,0.191819,62658.0,62657.0,0.081819]
[1728829952278,0.22006127,62658.0,62657.0,0.081819]
[1728829953173,0.191819,62658.0,62657.0,0.081819]
[1728829967394,0.301819,62658.0,62657.0,0.002]
[1728829967595,0.333219,62658.0,62657.0,0.06576754]
[1728829968088,0.333219,62658.0,62657.0,0.002]
[1728829968993,0.332219,62658.0,62657.0,0.002]
[1728829969296,0.333219,62658.0,62657.0,0.002]
[1728829969488,0.079823,62654.0,62653.0,0.090924]
[1728829969688,0.079823,62654.0,62653.0,0.079824]
[1728829969689,0.190223,62654.0,62653.0,0.079824]
[1728829970790,0.190223,62654.0,62652.0,0.06376754]
[1728829970791,0.411223,62654.0,62652.0,0.06376754]
[1728829970997,0.079827,62651.0,62650.0,0.0111]
[1728829971293,0.07983,62648.0,62647.0,0.0037]
[1728829971488,0.07983,62648.0,62643.0,0.0074]
[1728829971489,0.079836,62644.0,62643.0,0.0037]
[1728829971681,0.079837,62643.0,62642.0,0.079838]
[1728829971885,0.080237,62643.0,62642.0,0.079838]
[1728829973795,0.081237,62643.0,62642.0,0.079838]
[1728829974799,0.082237,62643.0,62642.0,0.079838]
[1728829980704,0.192237,62643.0,62638.0,0.07973226]
[1728829980907,0.190242,62639.0,62638.0,0.15957526]
[1728829981207,0.190242,62639.0,62638.0,0.079843]
[1728829982113,0.1104,62639.0,62634.0,0.52037926]
[1728829982410,0.079848,62634.0,62633.0,0.0037]
[1728829982613,0.079848,62634.0,62628.0,0.09576464]
[1728829982614,0.079851,62632.0,62631.0,0.08013226]
[1728829982811,0.079851,62632.0,62631.0,0.0004]
[1728829982812,0.190251,62632.0,62631.0,0.0004]
[1728829983912,0.21965003,62632.0,62631.0,0.0004]
[1728829984214,0.22065003,62632.0,62631.0,0.0004]
[1728829985815,0.22165003,62632.0,62631.0,0.0004]
[1728829986009,0.082251,62632.0,62631.0,0.0004]
[1728829986516,0.192251,62632.0,62631.0,0.0004]
[1728829987315,0.192251,62632.0,62631.0,0.080252]
[1728829987515,0.082251,62632.0,62631.0,0.080252]
[1728829990912,0.192251,62632.0,62631.0,0.080252]
[1728829991214,0.082251,62632.0,62631.0,0.080252]
[1728829991410,0.192251,62632.0,62631.0,0.080252]
[1728829991907,0.302251,62632.0,62631.0,0.080252]
[1728829992616,0.192251,62632.0,62631.0,0.080252]
[1728829993610,0.302251,62632.0,62631.0,0.0004]
[1728830000020,0.302251,62632.0,62626.0,0.0037]
[1728830000021,0.079862,62623.0,62622.0,0.0004]
[1728830000217,0.2204,62623.0,62620.0,0.00188]
[1728830000519,0.079876,62612.0,62611.0,0.07973226]
[1728830000708,0.190276,62612.0,62610.0,0.15961026]
[1728830001016,0.080278,62611.0,62610.0,0.15961026]
[1728830001319,0.080278,62611.0,62610.0,0.079878]
[1728830003320,0.081278,62611.0,62610.0,0.079878]
[1728830003529,0.082278,62611.0,62610.0,0.079878]
[1728830007422,0.082278,62611.0,62608.0,0.44053226]
[1728830007423,0.1124,62611.0,62608.0,0.07973226]
[1728830007721,0.08028,62609.0,62607.0,0.079882]
[1728830007917,0.11,62608.0,62607.0,0.079882]
[1728830008623,0.1104,62608.0,62607.0,0.079882]
[1728830009813,0.1114,62608.0,62607.0,0.079882]
[1728830010226,0.1124,62608.0,62607.0,0.079882]
[1728830011126,0.1124,62608.0,62606.0,0.07973226]
[1728830011314,0.080283,62607.0,62605.0,0.07973226]
[1728830011626,0.190284,62606.0,62604.0,0.079886]
[1728830011816,0.190284,62606.0,62605.0,0.079885]
[1728830013219,0.191284,62606.0,62605.0,0.079885]
[1728830013529,0.192284,62606.0,62605.0,0.079885]
[1728830013818,0.192284,62606.0,62602.0,0.3608]
[1728830013819,0.2224,62606.0,62602.0,0.07973226]
[1728830014022,0.2224,62606.0,62601.0,0.0822861]
[1728830014023,0.079889,62602.0,62601.0,0.07973226]
[1728830014329,0.079889,62602.0,62600.0,0.0004]
[1728830014330,0.07989,62601.0,62600.0,0.0004]
[1728830014621,0.08029,62601.0,62600.0,0.0004]
[1728830016622,0.08129,62601.0,62600.0,0.0004]
[1728830016932,0.079896,62597.0,62596.0,0.00533019]
[1728830017227,0.079896,62597.0,62594.0,0.0004]
[1728830017228,0.079898,62595.0,62594.0,0.0004]
[1728830017427,0.441098,62595.0,62594.0,0.0004]
[1728830017928,0.642298,62595.0,62594.0,0.0004]
[1728830019326,0.643298,62595.0,62594.0,0.0004]
[1728830019523,0.5322,62595.0,62594.0,0.0004]
[1728830019821,0.5322,62595.0,62594.0,0.080299]
[1728830019822,0.3622,62595.0,62594.0,0.080299]
[1728830020025,0.3632,62595.0,62594.0,0.080299]
[1728830020625,0.5332,62595.0,62594.0,0.080299]
[1728830021825,0.3632,62595.0,62594.0,0.080299]
[1728830022430,0.3632,62595.0,62594.0,0.08529608]
[1728830025330,0.3632,62595.0,62594.0,0.08529598]
[1728830025633,0.3632,62595.0,62594.0,0.11410641]
[1728830026129,0.3632,62595.0,62594.0,0.19383867]
[1728830027226,0.3632,62595.0,62594.0,0.29312273]
[1728830027730,0.0024,62595.0,62594.0,0.29312273]
[1728830028232,0.0024,62595.0,62594.0,0.21339047]
[1728830030236,0.0024,62595.0,62594.0,0.2131413]
[1728830031121,0.0024,62595.0,62594.0,0.66970594]
[1728830031535,0.0024,62595.0,62594.0,0.5739413]
[1728830032229,0.0024,62595.0,62594.0,0.66952807]
[1728830032631,0.0024,62595.0,62594.0,0.67752292]
[1728830033625,0.0024,62595.0,62594.0,0.66952807]
[1728830033822,0.0024,62595.0,62594.0,0.30872807]
[1728830034038,0.0024,62595.0,62594.0,0.66952807]
[1728830034731,0.0024,62595.0,62594.0,0.57848803]
[1728830034934,0.0024,62595.0,62594.0,0.67751111]
[1728830035239,0.0024,62595.0,62594.0,0.58192434]
[1728830035823,0.0024,62595.0,62594.0,0.58194097]
[1728830037227,0.0024,62595.0,62594.0,0.58194077]
[1728830037427,0.0024,62595.0,62594.0,0.48290106]
[1728830037623,0.0024,62595.0,62594.0,0.47490621]
[1728830037933,0.0024,62595.0,62594.0,0.4540907]
[1728830038135,0.0024,62595.0,62594.0,0.55318775]
[1728830039636,0.0024,62595.0,62594.0,0.54519283]
[1728830040732,0.0024,62595.0,62594.0,0.55318789]
[1728830040929,0.0024,62595.0,62594.0,0.54519283]
[1728830041627,0.1724,62595.0,62594.0,0.54519283]
[1728830041938,0.1724,62595.0,62594.0,0.55318815]
[1728830042137,0.1724,62595.0,62594.0,0.19238815]
[1728830042541,0.1724,62595.0,62594.0,0.19238853]
[1728830042732,0.1724,62595.0,62594.0,0.11248944]
[1728830042933,0.252298,62595.0,62594.0,0.09949705]
[1728830043127,0.252298,62595.0,62594.0,0.19525428]
[1728830043333,0.252298,62595.0,62594.0,0.09949705]
[1728830045134,0.252298,62595.0,62594.0,0.0004]
[1728830051548,0.252298,62595.0,62588.0,0.075221]
[1728830051549,0.079906,62589.0,62588.0,0.075221]
[1728830051845,0.079913,62583.0,62581.0,0.0037]
[1728830052045,0.079913,62583.0,62582.0,0.08027]
[1728830052046,0.3608,62583.0,62582.0,0.08027]
[1728830052240,0.0004,62583.0,62582.0,0.20807474]
[1728830052434,0.0004,62583.0,62582.0,0.17318009]
[1728830052634,0.0004,62583.0,62582.0,0.23703549]
[1728830052841,0.0004,62583.0,62582.0,0.22903851]
[1728830053150,0.0014,62583.0,62582.0,0.26471361]
[1728830053539,0.0024,62583.0,62582.0,0.26471361]
[1728830054437,0.1724,62583.0,62582.0,0.26471361]
[1728830055641,0.252313,62583.0,62582.0,0.26471361]
[1728830055941,0.252313,62583.0,62582.0,0.18479861]
[1728830056332,0.252313,62583.0,62582.0,0.26458106]
[1728830056938,0.252313,62583.0,62582.0,0.16505056]
[1728830057843,0.252313,62583.0,62582.0,0.08526811]
[1728830058640,0.252313,62583.0,62582.0,0.08526812]
[1728830059453,0.252313,62583.0,62582.0,0.16505057]
[1728830059644,0.252313,62583.0,62582.0,0.08526812]
[1728830061551,0.252313,62583.0,62582.0,0.16518312]
[1728830061552,0.1724,62583.0,62582.0,0.16518312]
[1728830062051,0.1724,62583.0,62582.0,0.08526812]
[1728830062353,0.1724,62583.0,62582.0,0.08526807]
[1728830062354,0.252313,62583.0,62582.0,0.08526807]
[1728830063557,0.252313,62583.0,62582.0,0.08027]
[1728830064449,0.252313,62583.0,62582.0,0.0004]
[1728830065360,0.613113,62583.0,62582.0,0.0004]
[1728830065659,1.692473,62583.0,62582.0,0.12813589]
[1728830067557,1.692473,62583.0,62582.0,0.08027]
[1728830067753,1.692473,62583.0,62582.0,0.12813589]
[1728830068143,1.72084291,62583.0,62582.0,0.0004]
[1728830071354,0.613113,62583.0,62582.0,0.160185]
[1728830071560,0.1724,62583.0,62582.0,0.33967254]
[1728830071862,0.1724,62583.0,62582.0,0.27288513]
[1728830072050,0.1724,62583.0,62582.0,0.25989009]
[1728830074566,0.252313,62583.0,62582.0,0.25989009]
[1728830074756,0.252313,62583.0,62582.0,0.33969804]
[1728830075060,0.252313,62583.0,62582.0,0.23999295]
[1728830075249,0.252313,62583.0,62582.0,0.160185]
[1728830077162,0.252313,62583.0,62582.0,0.2240312]
[1728830079867,0.252313,62583.0,62582.0,0.0004]
[1728830080052,0.252313,62583.0,62582.0,0.08027]
[1728830080660,0.252313,62583.0,62582.0,0.07637]
[1728830081063,0.731673,62583.0,62582.0,0.07247]
[1728830081255,0.731673,62583.0,62582.0,0.04791552]
[1728830081256,0.7724,62583.0,62582.0,0.04791552]
[1728830081459,0.079916,62581.0,62577.0,0.07987]
[1728830081763,0.51524,62578.0,62577.0,0.07987]
[1728830081966,0.51524,62578.0,62577.0,0.06427]
[1728830084560,0.54383783,62578.0,62577.0,0.06427]
[1728830084865,0.54483783,62578.0,62577.0,0.06427]
[1728830085258,0.54583783,62578.0,62577.0,0.06427]
[1728830089459,0.51724,62578.0,62577.0,0.06427]
[1728830089857,0.34724,62578.0,62577.0,0.144191]
[1728830090065,0.51724,62578.0,62577.0,0.144191]
[1728830090862,0.51724,62578.0,62577.0,0.06427]
[1728830091260,0.54854,62578.0,62577.0,0.06427]
[1728830095668,0.0024,62578.0,62577.0,0.144191]
[1728830096370,0.08232,62578.0,62577.0,0.144191]
[1728830096572,0.25232,62578.0,62577.0,0.144191]
[1728830098373,0.25232,62578.0,62577.0,0.24326894]
[1728830103665,0.0024,62578.0,62577.0,0.24326894]
[1728830103973,0.0004,62583.0,62582.0,0.079915]
[1728830104178,0.0004,62589.0,62588.0,0.079907]
[1728830104373,0.0004,62589.0,62588.0,0.17898494]
[1728830104572,0.0004,62589.0,62588.0,0.27477349]
[1728830104777,0.0004,62589.0,62588.0,0.28848017]
[1728830104976,0.0004,62589.0,62588.0,0.67088324]
[1728830105178,0.0004,62589.0,62588.0,0.55277896]
[1728830105676,0.01719741,62596.0,62588.0,0.47387196]
[1728830105883,0.00239741,62596.0,62594.0,0.079899]
[1728830106077,0.25229441,62596.0,62594.0,0.079899]
[1728830106376,0.17239741,62596.0,62594.0,0.079899]
[1728830106676,0.00239741,62596.0,62594.0,0.249899]
[1728830107175,0.0014,62595.0,62594.0,0.0938918]
[1728830107377,0.0014,62595.0,62594.0,0.1258918]
[1728830107881,0.0024,62595.0,62594.0,0.1258918]
[1728830108590,0.0014,62595.0,62594.0,0.65669178]
[1728830108881,0.0024,62595.0,62594.0,0.83655336]
[1728830109178,0.0024,62595.0,62594.0,0.73832222]
[1728830109381,0.0024,62595.0,62594.0,0.66704736]
[1728830109576,0.0024,62595.0,62594.0,0.56903354]
[1728830109978,0.0024,62595.0,62594.0,0.56832222]
[1728830110177,0.0024,62595.0,62594.0,0.48869178]
[1728830110568,0.0024,62595.0,62594.0,0.48369383]
[1728830110769,0.0024,62595.0,62594.0,0.4886906]
[1728830111776,0.0024,62595.0,62594.0,0.48369383]
[1728830111983,0.0024,62595.0,62594.0,0.48869097]
[1728830112374,0.0024,62595.0,62594.0,0.48369406]
[1728830112580,0.0024,62595.0,62594.0,0.48869104]
[1728830112790,0.0024,62595.0,62594.0,0.12789104]
[1728830113086,0.082298,62595.0,62594.0,0.12789104]
[1728830113294,0.082298,62595.0,62594.0,0.1228941]
[1728830113485,0.082298,62595.0,62594.0,0.114899]
[1728830114291,0.082298,62595.0,62594.0,0.12789165]
[1728830114590,0.082298,62595.0,62594.0,0.1278916]
[1728830114786,0.082298,62595.0,62594.0,0.12789157]
[1728830115676,0.0024,62595.0,62594.0,0.12789157]
[1728830117181,0.0024,62595.0,62594.0,0.48869157]
[1728830117378,0.0024,62595.0,62594.0,0.12789157]
[1728830117583,0.0024,62595.0,62594.0,0.12789158]
[1728830120393,0.0024,62595.0,62594.0,0.16089158]
[1728830120987,0.0024,62595.0,62594.0,0.52169158]
[1728830123207,0.0024,62595.0,62594.0,0.48869158]
[1728830125089,0.0024,62595.0,62594.0,0.48069614]
[1728830125285,0.082298,62595.0,62594.0,0.44869591]
[1728830127196,0.082298,62595.0,62594.0,0.36879691]
[1728830127397,0.079903,62591.0,62588.0,0.0004]
[1728830127698,0.611106,62589.0,62588.0,0.0004]
[1728830128698,0.611106,62589.0,62588.0,0.0014]
[1728830128900,0.612106,62589.0,62588.0,0.0024]
[1728830130197,0.612106,62589.0,62588.0,0.0014]
[1728830130198,1.092426,62589.0,62588.0,0.0014]
[1728830130389,0.079913,62583.0,62582.0,0.0004]
[1728830130695,0.611113,62583.0,62582.0,0.0004]
[1728830131803,0.612113,62583.0,62582.0,0.0004]
[1728830132201,0.613113,62583.0,62582.0,0.0004]
[1728830132397,1.692473,62583.0,62582.0,0.0004]
[1728830134096,1.692473,62583.0,62577.0,0.0004]
[1728830134291,0.07993,62570.0,62568.0,0.0054]
[1728830134602,0.079931,62569.0,62568.0,0.0054]
[1728830134796,0.063091,62569.0,62568.0,0.0054]
[1728830135101,0.0004,62569.0,62568.0,0.0054]
[1728830135303,0.48406,62570.0,62569.0,0.079931]
[1728830135304,0.451271,62570.0,62569.0,0.079931]
[1728830135502,0.450471,62570.0,62569.0,0.159801]
[1728830135701,0.1704,62570.0,62569.0,0.17279905]
[1728830136005,0.5312,62570.0,62569.0,0.17279905]
[1728830136298,0.5312,62570.0,62569.0,0.159801]
[1728830136299,0.61113,62570.0,62569.0,0.159801]
[1728830136497,0.61213,62570.0,62569.0,0.159801]
[1728830137288,0.61313,62570.0,62569.0,0.159801]
[1728830137700,0.5332,62570.0,62569.0,0.159801]
[1728830141103,0.5332,62570.0,62569.0,0.17279882]
[1728830141311,0.5332,62570.0,62569.0,0.159801]
[1728830141901,0.5332,62570.0,62569.0,0.22341894]
[1728830142406,0.0024,62570.0,62569.0,0.159801]
[1728830142609,0.1724,62570.0,62569.0,0.17279863]
[1728830143305,0.1724,62570.0,62569.0,0.20489863]
[1728830147601,0.1724,62570.0,62569.0,0.20489846]
[1728830147797,0.1724,62570.0,62569.0,0.19989944]
[1728830148003,0.1724,62570.0,62569.0,0.20489846]
[1728830149208,0.1724,62570.0,62569.0,0.17279846]
[1728830150812,0.1724,62570.0,62569.0,0.17279872]
[1728830151909,0.1724,62570.0,62569.0,0.159801]
[1728830152109,0.1724,62570.0,62569.0,0.17279892]
[1728830152805,0.1724,62570.0,62569.0,0.159801]
[1728830153004,0.1724,62570.0,62569.0,0.17279892]
[1728830154109,0.0024,62570.0,62569.0,0.17279892]
[1728830154711,0.1724,62570.0,62569.0,0.17279892]
[1728830155015,0.1724,62570.0,62569.0,0.159801]
[1728830155312,0.1724,62570.0,62569.0,0.17279873]
[1728830156204,0.1724,62570.0,62569.0,0.23641667]
[1728830157202,0.1724,62570.0,62569.0,0.17279873]
[1728830157406,0.1724,62570.0,62569.0,0.25242917]
[1728830157609,0.1724,62570.0,62569.0,0.35369555]
[1728830157810,0.1724,62570.0,62569.0,0.25242917]
[1728830158004,0.1724,62570.0,62569.0,0.35370166]
[1728830158208,0.1724,62570.0,62569.0,0.25242917]
[1728830158420,0.1724,62570.0,62569.0,0.35395655]
[1728830158714,0.1724,62570.0,62569.0,0.27412257]
[1728830159219,0.1724,62570.0,62569.0,0.27412255]
[1728830159220,0.0024,62570.0,62569.0,0.27412255]
[1728830160721,0.1724,62570.0,62569.0,0.27412255]
[1728830161315,0.1724,62570.0,62569.0,0.26112484]
[1728830161513,0.1724,62570.0,62569.0,0.27412233]
[1728830162720,0.1724,62570.0,62569.0,0.26112484]
[1728830162920,0.1724,62570.0,62569.0,0.27412216]
[1728830163815,0.1124,62570.0,62569.0,0.27412216]
[1728830164316,0.1124,62570.0,62569.0,0.28412033]
[1728830165519,0.1124,62570.0,62569.0,0.16488356]
[1728830165720,0.1124,62570.0,62569.0,0.18288104]